[Event "*** Titled Tuesday Blitz"]
[Site "Chess.com"]
[Date "2020.04.07"]
[Round "3"]
[White "guillembaches"]
[Black "Fibrinogen"]
[Result "1-0"]
[WhiteElo "2460"]
[BlackElo "2694"]
[TimeControl "180+1"]
[EndTime "13:29:03 PDT"]
[Termination "guillembaches won by resignation"]

1. e4 {[%clk 0:03:00.9]} 1... c5 {[%clk 0:02:54]} 2. Nf3 {[%clk 0:03:00.8]} 2...
e6 {[%clk 0:02:52.1]} 3. g3 {[%clk 0:03:00.8]} 3... Nc6 {[%clk 0:02:51.2]} 4.
Bg2 {[%clk 0:03:00.8]} 4... a6 {[%clk 0:02:50.5]} 5. O-O {[%clk 0:03:00.1]} 5...
Qc7 {[%clk 0:02:50]} 6. c3 {[%clk 0:02:55.7]} 6... Nf6 {[%clk 0:02:50.2]} 7. Re1
{[%clk 0:02:54.5]} 7... b5 {[%clk 0:02:35.7]} 8. d4 {[%clk 0:02:53.7]} 8... cxd4
{[%clk 0:02:35]} 9. cxd4 {[%clk 0:02:54.6]} 9... Bb7 {[%clk 0:02:22.4]} 10. Bf4
{[%clk 0:02:39.5]} 10... d6 {[%clk 0:02:19]} 11. d5 {[%clk 0:02:34.8]} 11... Ne5
{[%clk 0:02:16]} 12. dxe6 {[%clk 0:02:30.9]} 12... fxe6 {[%clk 0:02:13.5]} 13.
Nd4 {[%clk 0:02:22.1]} 13... Qf7 {[%clk 0:02:00.2]} 14. a4 {[%clk 0:02:11.8]}
14... Ng6 {[%clk 0:01:37.2]} 15. Be3 {[%clk 0:01:59.4]} 15... b4 {[%clk
0:01:28]} 16. Qb3 {[%clk 0:01:52]} 16... Nxe4 {[%clk 0:01:22.3]} 17. Nxe6 {[%clk
0:01:37.5]} 17... d5 {[%clk 0:01:10.5]} 18. Ng5 {[%clk 0:01:29]} 18... Qf5
{[%clk 0:00:53]} 19. Nxe4 {[%clk 0:01:04.9]} 19... dxe4 {[%clk 0:00:53.1]} 20.
Nc3 {[%clk 0:01:01.9]} 20... Be7 {[%clk 0:00:44.9]} 21. Rad1 {[%clk 0:00:52.3]}
21... Ne5 {[%clk 0:00:23.9]} 22. Nd5 {[%clk 0:00:48]} 22... Bd6 {[%clk
0:00:15.9]} 23. Bf4 {[%clk 0:00:41.6]} 23... Rd8 {[%clk 0:00:11.3]} 24. Bxe4
{[%clk 0:00:37.9]} 24... Qh5 {[%clk 0:00:11.8]} 25. Bg2 {[%clk 0:00:32.8]} 25...
Qf5 {[%clk 0:00:05.3]} 26. Ne3 {[%clk 0:00:30.4]} 26... Qf6 {[%clk 0:00:05]} 27.
Bxb7 {[%clk 0:00:28.8]} 1-0

[Event "*** Titled Tuesday Blitz"]
[Site "Chess.com"]
[Date "2020.04.07"]
[Round "3"]
[White "Batica1984"]
[Black "Kobalia"]
[Result "1-0"]
[WhiteElo "2844"]
[BlackElo "2605"]
[TimeControl "180+1"]
[EndTime "13:29:08 PDT"]
[Termination "Batica1984 won by resignation"]

1. e4 {[%clk 0:03:00.9]} 1... c6 {[%clk 0:03:00.2]} 2. d4 {[%clk 0:02:59.1]}
2... d5 {[%clk 0:03:01.1]} 3. e5 {[%clk 0:02:59.2]} 3... Bf5 {[%clk 0:03:00.4]}
4. h4 {[%clk 0:02:57.8]} 4... h5 {[%clk 0:02:59.9]} 5. c4 {[%clk 0:02:51.7]}
5... e6 {[%clk 0:02:59]} 6. Nc3 {[%clk 0:02:52.2]} 6... Ne7 {[%clk 0:02:58.6]}
7. Nge2 {[%clk 0:02:49.8]} 7... Nd7 {[%clk 0:02:46.4]} 8. Ng3 {[%clk 0:02:49.2]}
8... Bg6 {[%clk 0:02:45.8]} 9. Bg5 {[%clk 0:02:46.8]} 9... dxc4 {[%clk
0:02:45.3]} 10. Nge4 {[%clk 0:02:32.9]} 10... Nb6 {[%clk 0:02:46.2]} 11. Nd6+
{[%clk 0:02:31.5]} 11... Kd7 {[%clk 0:02:41.5]} 12. Nxb7 {[%clk 0:02:05.5]}
12... Qc7 {[%clk 0:02:41]} 13. Nc5+ {[%clk 0:02:04.8]} 13... Ke8 {[%clk
0:02:40.5]} 14. Be2 {[%clk 0:02:03.4]} 14... Nf5 {[%clk 0:02:37.3]} 15. O-O
{[%clk 0:01:50.1]} 15... Be7 {[%clk 0:02:36.5]} 16. N3e4 {[%clk 0:01:44.2]}
16... Rd8 {[%clk 0:02:32.2]} 17. Bxe7 {[%clk 0:00:53.9]} 17... Qxe7 {[%clk
0:02:28.8]} 18. Qe1 {[%clk 0:00:39.9]} 18... Qxh4 {[%clk 0:02:23.4]} 19. Rd1
{[%clk 0:00:35.3]} 19... Rxd4 {[%clk 0:02:19.6]} 20. Nd6+ {[%clk 0:00:33.7]}
20... Kf8 {[%clk 0:02:03.8]} 21. Bf3 {[%clk 0:00:33.7]} 21... Nd5 {[%clk
0:01:36.8]} 22. Qa5 {[%clk 0:00:30.9]} 22... Rxd1 {[%clk 0:01:20.6]} 23. Rxd1
{[%clk 0:00:30.2]} 23... Kg8 {[%clk 0:01:21.2]} 24. Qxa7 {[%clk 0:00:29.8]}
24... Nd4 {[%clk 0:01:06.3]} 25. Bxd5 {[%clk 0:00:26.1]} 25... cxd5 {[%clk
0:01:05.4]} 26. Nd7 {[%clk 0:00:23.7]} 26... Ne2+ {[%clk 0:01:01.7]} 27. Kf1
{[%clk 0:00:23.2]} 27... Bd3 {[%clk 0:01:02.2]} 28. Nf6+ {[%clk 0:00:22.8]} 1-0

[Event "*** Titled Tuesday Blitz"]
[Site "Chess.com"]
[Date "2020.04.07"]
[Round "3"]
[White "bascheyaro"]
[Black "Jeffinho023"]
[Result "1-0"]
[WhiteElo "2759"]
[BlackElo "2448"]
[TimeControl "180+1"]
[EndTime "13:29:08 PDT"]
[Termination "bascheyaro won by resignation"]

1. d4 {[%clk 0:02:58.2]} 1... Nf6 {[%clk 0:02:56]} 2. Nf3 {[%clk 0:02:58]} 2...
d5 {[%clk 0:02:56]} 3. c4 {[%clk 0:02:58.4]} 3... c6 {[%clk 0:02:55]} 4. Nc3
{[%clk 0:02:58.8]} 4... e6 {[%clk 0:02:39.4]} 5. Bg5 {[%clk 0:02:58.7]} 5...
Nbd7 {[%clk 0:02:38.2]} 6. e3 {[%clk 0:02:58.7]} 6... Qa5 {[%clk 0:02:32.5]} 7.
Bxf6 {[%clk 0:02:58.3]} 7... Nxf6 {[%clk 0:02:32.3]} 8. Qb3 {[%clk 0:02:59.2]}
8... Bd6 {[%clk 0:02:25.7]} 9. Bd3 {[%clk 0:02:58]} 9... Qb4 {[%clk 0:02:13.5]}
10. c5 {[%clk 0:02:54.8]} 10... Qxb3 {[%clk 0:02:12.4]} 11. axb3 {[%clk
0:02:55.7]} 11... Bc7 {[%clk 0:02:08.8]} 12. b4 {[%clk 0:02:56.1]} 12... b5
{[%clk 0:01:46.2]} 13. cxb6 {[%clk 0:02:54.1]} 13... Bxb6 {[%clk 0:01:43.1]} 14.
Ne5 {[%clk 0:02:54.4]} 14... Bb7 {[%clk 0:01:41.3]} 15. Ba6 {[%clk 0:02:52.1]}
15... Bxa6 {[%clk 0:01:38]} 16. Rxa6 {[%clk 0:02:53]} 16... Rc8 {[%clk 0:01:31]}
17. Na4 {[%clk 0:02:51.9]} 17... Nd7 {[%clk 0:01:24.9]} 18. Nxd7 {[%clk
0:02:09.9]} 18... Kxd7 {[%clk 0:01:24.5]} 19. Kd2 {[%clk 0:01:55.2]} 19... Rb8
{[%clk 0:01:24.2]} 20. Nxb6+ {[%clk 0:01:54.2]} 20... Rxb6 {[%clk 0:00:58.1]}
21. Rxa7+ {[%clk 0:01:54.1]} 21... Kd6 {[%clk 0:00:58.3]} 22. Rxf7 {[%clk
0:01:34.4]} 22... Rxb4 {[%clk 0:00:57.3]} 23. Rb1 {[%clk 0:01:34.5]} 23... g6
{[%clk 0:00:53]} 24. Kc3 {[%clk 0:01:21.6]} 24... Rc4+ {[%clk 0:00:49.6]} 25.
Kd3 {[%clk 0:01:21.7]} 25... Rb4 {[%clk 0:00:49.2]} 26. b3 {[%clk 0:01:21.9]}
26... h6 {[%clk 0:00:40.6]} 27. Kc3 {[%clk 0:01:20.2]} 27... Rbb8 {[%clk
0:00:33.1]} 28. Ra1 {[%clk 0:01:19.8]} 28... Ra8 {[%clk 0:00:27.6]} 29. Rxa8
{[%clk 0:01:17.5]} 29... Rxa8 {[%clk 0:00:27.4]} 30. Kb2 {[%clk 0:01:13.2]}
30... Rg8 {[%clk 0:00:23.9]} 31. h4 {[%clk 0:01:08.4]} 31... h5 {[%clk 0:00:20]}
32. Rh7 {[%clk 0:00:48.3]} 32... g5 {[%clk 0:00:18]} 33. hxg5 {[%clk 0:00:47.3]}
33... Rxg5 {[%clk 0:00:18.9]} 34. g3 {[%clk 0:00:47.7]} 34... e5 {[%clk
0:00:12]} 35. dxe5+ {[%clk 0:00:45.8]} 35... Kxe5 {[%clk 0:00:10.6]} 36. f4+
{[%clk 0:00:45.4]} 1-0

[Event "*** Titled Tuesday Blitz"]
[Site "Chess.com"]
[Date "2020.04.07"]
[Round "3"]
[White "FabianoCaruana"]
[Black "DrMelekess"]
[Result "1-0"]
[WhiteElo "3047"]
[BlackElo "2710"]
[TimeControl "180+1"]
[EndTime "13:29:09 PDT"]
[Termination "FabianoCaruana won on time"]

1. e4 {[%clk 0:02:56.4]} 1... d5 {[%clk 0:02:59.6]} 2. exd5 {[%clk 0:02:56.4]}
2... Qxd5 {[%clk 0:03:00.5]} 3. Nc3 {[%clk 0:02:56.9]} 3... Qd8 {[%clk
0:03:01.1]} 4. Nf3 {[%clk 0:02:57]} 4... Nf6 {[%clk 0:03:02]} 5. d4 {[%clk
0:02:57.7]} 5... c6 {[%clk 0:03:01.9]} 6. g3 {[%clk 0:02:58.3]} 6... Bg4 {[%clk
0:03:01.7]} 7. Bg2 {[%clk 0:02:58.7]} 7... e6 {[%clk 0:03:02.2]} 8. O-O {[%clk
0:02:59.2]} 8... Nbd7 {[%clk 0:03:02]} 9. h3 {[%clk 0:02:59.6]} 9... Bxf3 {[%clk
0:03:01.8]} 10. Qxf3 {[%clk 0:02:59.5]} 10... Be7 {[%clk 0:03:02.7]} 11. Ne2
{[%clk 0:02:59.9]} 11... O-O {[%clk 0:03:03.1]} 12. c3 {[%clk 0:02:59.9]} 12...
Re8 {[%clk 0:03:01.6]} 13. Rd1 {[%clk 0:02:59.9]} 13... Qb6 {[%clk 0:03:01.2]}
14. Qd3 {[%clk 0:02:49.2]} 14... Rad8 {[%clk 0:03:00.3]} 15. Qc2 {[%clk
0:02:49.5]} 15... e5 {[%clk 0:02:55.3]} 16. Be3 {[%clk 0:02:48.2]} 16... Qc7
{[%clk 0:02:50.2]} 17. Rd2 {[%clk 0:02:47.1]} 17... exd4 {[%clk 0:02:47.4]} 18.
Nxd4 {[%clk 0:02:48]} 18... Bc5 {[%clk 0:02:47.2]} 19. Bf4 {[%clk 0:02:47.7]}
19... Ne5 {[%clk 0:02:37.4]} 20. Rad1 {[%clk 0:02:44.1]} 20... Qb6 {[%clk
0:02:22.5]} 21. b4 {[%clk 0:02:33.8]} 21... Bxd4 {[%clk 0:02:22]} 22. Rxd4
{[%clk 0:02:34.7]} 22... Rxd4 {[%clk 0:02:21.7]} 23. Rxd4 {[%clk 0:02:35.2]}
23... Ng6 {[%clk 0:02:18.3]} 24. Be3 {[%clk 0:02:34.2]} 24... Qc7 {[%clk
0:02:16.8]} 25. Qd2 {[%clk 0:02:33.9]} 25... a6 {[%clk 0:02:05.1]} 26. a4 {[%clk
0:02:33.5]} 26... h6 {[%clk 0:01:59.4]} 27. a5 {[%clk 0:02:25.3]} 27... Qe7
{[%clk 0:01:55.2]} 28. Kh2 {[%clk 0:02:17.2]} 28... Qc7 {[%clk 0:01:39.9]} 29.
c4 {[%clk 0:02:15.1]} 29... Qe7 {[%clk 0:01:38]} 30. c5 {[%clk 0:02:14.5]} 30...
Qe6 {[%clk 0:01:22.1]} 31. Rd6 {[%clk 0:02:07.1]} 31... Qe7 {[%clk 0:01:20.8]}
32. Qd4 {[%clk 0:02:01.4]} 32... Qe5 {[%clk 0:00:56.4]} 33. b5 {[%clk
0:01:36.1]} 33... axb5 {[%clk 0:00:48.9]} 34. a6 {[%clk 0:01:36.1]} 34... bxa6
{[%clk 0:00:48.4]} 35. Bxc6 {[%clk 0:01:36.1]} 35... Qxd4 {[%clk 0:00:38.9]} 36.
Rxd4 {[%clk 0:01:31.7]} 36... Rc8 {[%clk 0:00:37.6]} 37. Bb7 {[%clk 0:01:31.7]}
37... Rc7 {[%clk 0:00:08.5]} 38. Bxa6 {[%clk 0:01:31.8]} 38... Ne7 {[%clk
0:00:05.2]} 39. Rd8+ {[%clk 0:01:23]} 39... Kh7 {[%clk 0:00:05]} 40. Bxb5 {[%clk
0:01:23.2]} 40... Nf5 {[%clk 0:00:04]} 41. Bd3 {[%clk 0:01:18.7]} 41... g6
{[%clk 0:00:02.8]} 42. Bxf5 {[%clk 0:01:17.9]} 42... gxf5 {[%clk 0:00:03.7]} 43.
Bd4 {[%clk 0:01:14.3]} 43... Kg6 {[%clk 0:00:01.9]} 44. Rd6 {[%clk 0:01:13.9]}
1-0

[Event "*** Titled Tuesday Blitz"]
[Site "Chess.com"]
[Date "2020.04.07"]
[Round "3"]
[White "iLuusions"]
[Black "Bad4life"]
[Result "1-0"]
[WhiteElo "2593"]
[BlackElo "2320"]
[TimeControl "180+1"]
[EndTime "13:29:11 PDT"]
[Termination "iLuusions won by resignation"]

1. d4 {[%clk 0:03:00.9]} 1... Nf6 {[%clk 0:02:59.3]} 2. c4 {[%clk 0:03:01.8]}
2... g6 {[%clk 0:02:59.7]} 3. Nc3 {[%clk 0:03:00.8]} 3... Bg7 {[%clk 0:03:00.2]}
4. e4 {[%clk 0:03:00.7]} 4... d6 {[%clk 0:03:00.9]} 5. h3 {[%clk 0:03:01]} 5...
O-O {[%clk 0:03:01.5]} 6. Bg5 {[%clk 0:03:01.2]} 6... c5 {[%clk 0:03:00]} 7. d5
{[%clk 0:03:00.5]} 7... e6 {[%clk 0:03:00.5]} 8. Bd3 {[%clk 0:02:55]} 8... exd5
{[%clk 0:02:59.9]} 9. cxd5 {[%clk 0:02:55.9]} 9... Re8 {[%clk 0:02:59.4]} 10.
Nf3 {[%clk 0:02:55.9]} 10... h6 {[%clk 0:02:52.3]} 11. Be3 {[%clk 0:02:55.6]}
11... Nh5 {[%clk 0:02:49.7]} 12. O-O {[%clk 0:02:51.9]} 12... Nd7 {[%clk
0:02:48.2]} 13. Nd2 {[%clk 0:02:46.4]} 13... Bd4 {[%clk 0:02:44]} 14. Bxh6
{[%clk 0:02:28]} 14... Ng3 {[%clk 0:02:41.5]} 15. Re1 {[%clk 0:02:25.3]} 15...
Bxf2+ {[%clk 0:02:32.4]} 16. Kxf2 {[%clk 0:02:24.3]} 16... Qh4 {[%clk
0:02:33.3]} 17. Be3 {[%clk 0:02:00.5]} 17... Ne5 {[%clk 0:02:23.8]} 18. Nf3
{[%clk 0:01:45.6]} 18... Nxe4+ {[%clk 0:02:03.1]} 19. Kg1 {[%clk 0:01:45]} 19...
Nxf3+ {[%clk 0:02:02]} 20. Qxf3 {[%clk 0:01:43.6]} 20... f5 {[%clk 0:01:14.6]}
21. Bf2 {[%clk 0:01:28.8]} 21... Qh8 {[%clk 0:00:53.4]} 22. Bxe4 {[%clk
0:01:17.2]} 22... fxe4 {[%clk 0:00:51.5]} 23. Rxe4 {[%clk 0:01:17.5]} 23... Bf5
{[%clk 0:00:49.9]} 24. Rxe8+ {[%clk 0:01:15.6]} 24... Rxe8 {[%clk 0:00:50.8]}
25. Qf4 {[%clk 0:01:10.8]} 25... Re5 {[%clk 0:00:16.2]} 26. Re1 {[%clk
0:01:04.4]} 26... Qf6 {[%clk 0:00:07.9]} 27. g4 {[%clk 0:00:40.8]} 27... g5
{[%clk 0:00:07.6]} 28. Qf3 {[%clk 0:00:40.2]} 28... Rxe1+ {[%clk 0:00:06.2]} 29.
Bxe1 {[%clk 0:00:41.1]} 29... Qd4+ {[%clk 0:00:02.9]} 30. Bf2 {[%clk 0:00:41.4]}
30... Be4 {[%clk 0:00:03.1]} 31. Qxe4 {[%clk 0:00:39.6]} 1-0

[Event "*** Titled Tuesday Blitz"]
[Site "Chess.com"]
[Date "2020.04.07"]
[Round "3"]
[White "Kimster98"]
[Black "mjray79"]
[Result "1-0"]
[WhiteElo "2479"]
[BlackElo "2251"]
[TimeControl "180+1"]
[EndTime "13:29:12 PDT"]
[Termination "Kimster98 won by resignation"]

1. c4 {[%clk 0:03:00.9]} 1... Nf6 {[%clk 0:02:59.4]} 2. g3 {[%clk 0:03:01.8]}
2... g6 {[%clk 0:02:59.7]} 3. Bg2 {[%clk 0:03:02.4]} 3... Bg7 {[%clk 0:03:00.2]}
4. Nc3 {[%clk 0:03:03.3]} 4... O-O {[%clk 0:03:00.6]} 5. e4 {[%clk 0:03:03.8]}
5... d6 {[%clk 0:03:01]} 6. Nge2 {[%clk 0:03:04.4]} 6... c5 {[%clk 0:03:00.2]}
7. O-O {[%clk 0:03:04.5]} 7... Nc6 {[%clk 0:02:59.9]} 8. d3 {[%clk 0:03:05.1]}
8... Ne8 {[%clk 0:02:58.7]} 9. Be3 {[%clk 0:03:05.6]} 9... Rb8 {[%clk
0:02:58.2]} 10. d4 {[%clk 0:03:05.9]} 10... cxd4 {[%clk 0:02:56.8]} 11. Nxd4
{[%clk 0:03:06.8]} 11... Nc7 {[%clk 0:02:56.3]} 12. Qd2 {[%clk 0:02:57.2]} 12...
a6 {[%clk 0:02:54.9]} 13. b3 {[%clk 0:02:56.3]} 13... Ne6 {[%clk 0:02:47.1]} 14.
Nxe6 {[%clk 0:02:51]} 14... Bxe6 {[%clk 0:02:48]} 15. Rac1 {[%clk 0:02:51.9]}
15... Qd7 {[%clk 0:02:45.4]} 16. Nd5 {[%clk 0:02:52.1]} 16... f5 {[%clk
0:02:28.3]} 17. exf5 {[%clk 0:02:50.2]} 17... Bxf5 {[%clk 0:02:29.2]} 18. Rfe1
{[%clk 0:02:47.2]} 18... e5 {[%clk 0:02:25.7]} 19. c5 {[%clk 0:02:41.9]} 19...
dxc5 {[%clk 0:02:21.8]} 20. Bxc5 {[%clk 0:02:40.1]} 20... Rfd8 {[%clk
0:02:20.3]} 21. Qe3 {[%clk 0:02:25.1]} 21... Qf7 {[%clk 0:02:04.4]} 22. Rcd1
{[%clk 0:02:20.2]} 22... Nd4 {[%clk 0:01:58.2]} 23. Ne7+ {[%clk 0:01:50.9]}
23... Kh8 {[%clk 0:01:56]} 24. Nxf5 {[%clk 0:01:50.7]} 24... Qxf5 {[%clk
0:01:53.2]} 25. Be4 {[%clk 0:01:47.8]} 25... Qh5 {[%clk 0:01:46]} 26. Bb6 {[%clk
0:01:42.5]} 26... Rf8 {[%clk 0:01:44.5]} 27. Kg2 {[%clk 0:01:39.1]} 27... Bh6
{[%clk 0:01:37.1]} 28. f4 {[%clk 0:01:39.2]} 28... Ne6 {[%clk 0:01:06]} 29. Bf3
{[%clk 0:01:37.4]} 29... Qf5 {[%clk 0:00:49.4]} 30. Qxe5+ {[%clk 0:01:29.5]}
30... Qxe5 {[%clk 0:00:49.4]} 31. Rxe5 {[%clk 0:01:30.4]} 31... Ng7 {[%clk
0:00:47.8]} 32. Rd7 {[%clk 0:01:27.6]} 32... Nf5 {[%clk 0:00:47]} 33. Be4 {[%clk
0:01:12.2]} 33... Bg7 {[%clk 0:00:45.6]} 34. Re6 {[%clk 0:01:11.3]} 34... Rfe8
{[%clk 0:00:22.2]} 35. Rxe8+ {[%clk 0:01:09.5]} 35... Rxe8 {[%clk 0:00:23.1]}
36. Bxf5 {[%clk 0:01:10.1]} 36... gxf5 {[%clk 0:00:22.6]} 37. Rxb7 {[%clk
0:01:10.4]} 37... Re2+ {[%clk 0:00:22.1]} 38. Kf3 {[%clk 0:01:09.8]} 38... Re8
{[%clk 0:00:17.1]} 39. Bc7 {[%clk 0:01:08.1]} 39... Kg8 {[%clk 0:00:15.9]} 40.
Rb8 {[%clk 0:01:08.1]} 40... Rxb8 {[%clk 0:00:14.6]} 41. Bxb8 {[%clk 0:01:09]}
41... Kf7 {[%clk 0:00:14.9]} 42. Be5 {[%clk 0:01:08.3]} 42... Ke8 {[%clk
0:00:15.8]} 43. Bxg7 {[%clk 0:01:08.2]} 43... Kd7 {[%clk 0:00:16.7]} 44. Ke3
{[%clk 0:01:07.2]} 1-0

[Event "*** Titled Tuesday Blitz"]
[Site "Chess.com"]
[Date "2020.04.07"]
[Round "3"]
[White "FMAntonio"]
[Black "IMTominho"]
[Result "0-1"]
[WhiteElo "2545"]
[BlackElo "2795"]
[TimeControl "180+1"]
[EndTime "13:29:13 PDT"]
[Termination "IMTominho won by resignation"]

1. d4 {[%clk 0:03:00]} 1... d5 {[%clk 0:02:59.7]} 2. c4 {[%clk 0:02:59.7]} 2...
c6 {[%clk 0:02:59.8]} 3. e3 {[%clk 0:02:59.3]} 3... Nf6 {[%clk 0:02:59.8]} 4.
Nc3 {[%clk 0:02:58.9]} 4... g6 {[%clk 0:02:58.1]} 5. Nf3 {[%clk 0:02:50]} 5...
Bg7 {[%clk 0:02:57.4]} 6. Be2 {[%clk 0:02:49.9]} 6... O-O {[%clk 0:02:57.3]} 7.
O-O {[%clk 0:02:49.9]} 7... a6 {[%clk 0:02:57.1]} 8. b3 {[%clk 0:02:48.4]} 8...
Bg4 {[%clk 0:02:46.6]} 9. Bb2 {[%clk 0:02:47.3]} 9... e6 {[%clk 0:02:43.6]} 10.
h3 {[%clk 0:02:46.2]} 10... Bxf3 {[%clk 0:02:41.7]} 11. Bxf3 {[%clk 0:02:47.1]}
11... Re8 {[%clk 0:02:41.6]} 12. e4 {[%clk 0:02:47]} 12... dxe4 {[%clk
0:02:35.7]} 13. Nxe4 {[%clk 0:02:46.9]} 13... Nxe4 {[%clk 0:02:33.8]} 14. Bxe4
{[%clk 0:02:47.3]} 14... Nd7 {[%clk 0:02:34.5]} 15. Qc2 {[%clk 0:02:27.3]} 15...
a5 {[%clk 0:02:30.1]} 16. Rad1 {[%clk 0:02:19.9]} 16... Nf6 {[%clk 0:02:27.4]}
17. Bf3 {[%clk 0:02:19.3]} 17... Rc8 {[%clk 0:02:20]} 18. Bc3 {[%clk 0:02:15.1]}
18... Qb6 {[%clk 0:02:18.2]} 19. Qd2 {[%clk 0:02:14.2]} 19... Ra8 {[%clk
0:02:17.4]} 20. Qb2 {[%clk 0:02:05.3]} 20... Nd7 {[%clk 0:02:10.2]} 21. d5
{[%clk 0:02:01]} 21... Bxc3 {[%clk 0:02:09.5]} 22. Qxc3 {[%clk 0:02:00.2]} 22...
cxd5 {[%clk 0:02:09.9]} 23. cxd5 {[%clk 0:02:00.3]} 23... Rac8 {[%clk
0:02:10.1]} 24. Qd2 {[%clk 0:01:47.9]} 24... e5 {[%clk 0:02:09.6]} 25. d6 {[%clk
0:01:38.5]} 25... e4 {[%clk 0:02:08.4]} 26. Bg4 {[%clk 0:01:26]} 26... f5 {[%clk
0:02:05.6]} 27. Be2 {[%clk 0:01:19.1]} 27... Rcd8 {[%clk 0:01:55.9]} 28. Bc4+
{[%clk 0:01:18.6]} 28... Kg7 {[%clk 0:01:55.7]} 29. Qd5 {[%clk 0:01:15.2]} 29...
Ne5 {[%clk 0:01:52.7]} 30. Bb5 {[%clk 0:01:10.7]} 30... Nc6 {[%clk 0:01:51.5]}
31. Rc1 {[%clk 0:01:04.6]} 31... e3 {[%clk 0:01:18.9]} 32. fxe3 {[%clk
0:01:04.3]} 32... Qxe3+ {[%clk 0:01:19.8]} 33. Kh1 {[%clk 0:01:04.2]} 33... Re5
{[%clk 0:01:18.1]} 34. Qd3 {[%clk 0:00:42.7]} 34... Qxd3 {[%clk 0:01:13.4]} 35.
Bxd3 {[%clk 0:00:43]} 35... Rxd6 {[%clk 0:01:14.3]} 36. Bc4 {[%clk 0:00:40.4]}
36... b5 {[%clk 0:01:11.4]} 37. Bd3 {[%clk 0:00:15.5]} 37... Nb4 {[%clk
0:01:11.4]} 38. Bb1 {[%clk 0:00:15.6]} 38... Rd2 {[%clk 0:01:10.5]} 39. Rc7+
{[%clk 0:00:15.4]} 39... Kh6 {[%clk 0:01:10.6]} 40. Rf4 {[%clk 0:00:15.6]} 40...
Re1+ {[%clk 0:01:05.2]} 41. Kh2 {[%clk 0:00:15.6]} 41... Rxb1 {[%clk 0:01:05.2]}
42. Rh4+ {[%clk 0:00:15.8]} 42... Kg5 {[%clk 0:01:05.5]} 43. Rhxh7 {[%clk
0:00:15.8]} 43... Rbb2 {[%clk 0:01:02.8]} 44. h4+ {[%clk 0:00:08.8]} 44... Kg4
{[%clk 0:01:01.8]} 0-1

[Event "*** Titled Tuesday Blitz"]
[Site "Chess.com"]
[Date "2020.04.07"]
[Round "3"]
[White "vladislavkovalev"]
[Black "Hanging_pointer"]
[Result "0-1"]
[WhiteElo "2872"]
[BlackElo "2504"]
[TimeControl "180+1"]
[EndTime "13:29:13 PDT"]
[Termination "Hanging_pointer won on time"]

1. e4 {[%clk 0:03:00.9]} 1... c6 {[%clk 0:02:59.4]} 2. d4 {[%clk 0:03:00.7]}
2... d5 {[%clk 0:03:00.3]} 3. exd5 {[%clk 0:03:01.6]} 3... cxd5 {[%clk
0:02:59.5]} 4. Bd3 {[%clk 0:03:02.2]} 4... Nc6 {[%clk 0:02:59.1]} 5. c3 {[%clk
0:03:02.9]} 5... Nf6 {[%clk 0:02:58.1]} 6. h3 {[%clk 0:03:03.4]} 6... g6 {[%clk
0:02:57]} 7. Nf3 {[%clk 0:03:03.7]} 7... Bg7 {[%clk 0:02:56.5]} 8. O-O {[%clk
0:03:03.8]} 8... O-O {[%clk 0:02:56.5]} 9. Re1 {[%clk 0:03:04.3]} 9... Bf5
{[%clk 0:02:55.9]} 10. Bf1 {[%clk 0:03:04.4]} 10... Rc8 {[%clk 0:02:52.8]} 11.
Na3 {[%clk 0:03:04.6]} 11... a6 {[%clk 0:02:50.8]} 12. Nc2 {[%clk 0:03:04.2]}
12... b5 {[%clk 0:02:50.5]} 13. a4 {[%clk 0:03:01.7]} 13... Qb6 {[%clk
0:02:48.8]} 14. Ne3 {[%clk 0:02:26]} 14... Be4 {[%clk 0:02:41.9]} 15. Ng5 {[%clk
0:02:25.8]} 15... b4 {[%clk 0:02:35.3]} 16. Nxe4 {[%clk 0:02:15.8]} 16... Nxe4
{[%clk 0:02:36.2]} 17. Nxd5 {[%clk 0:02:08]} 17... Qa5 {[%clk 0:02:36.6]} 18.
Nxb4 {[%clk 0:02:04]} 18... Nxb4 {[%clk 0:02:35]} 19. Rxe4 {[%clk 0:02:04.3]}
19... Nd5 {[%clk 0:02:31]} 20. Qf3 {[%clk 0:02:01.6]} 20... e6 {[%clk
0:02:19.1]} 21. Bd2 {[%clk 0:02:00]} 21... Rc6 {[%clk 0:02:17.3]} 22. Ree1
{[%clk 0:01:56.3]} 22... Qc7 {[%clk 0:02:14.3]} 23. Bd3 {[%clk 0:01:50.9]} 23...
Rb8 {[%clk 0:02:12]} 24. Ra2 {[%clk 0:01:50]} 24... a5 {[%clk 0:02:09.6]} 25.
Bb5 {[%clk 0:01:47.5]} 25... Rd6 {[%clk 0:02:05.7]} 26. g3 {[%clk 0:01:42.1]}
26... Qa7 {[%clk 0:02:01.3]} 27. h4 {[%clk 0:01:38.2]} 27... h6 {[%clk
0:01:58.7]} 28. Re2 {[%clk 0:01:35.2]} 28... Rdd8 {[%clk 0:01:56.1]} 29. Kg2
{[%clk 0:01:21.7]} 29... Nc7 {[%clk 0:01:53.9]} 30. Bd3 {[%clk 0:01:20.9]} 30...
Nd5 {[%clk 0:01:51.4]} 31. Bc1 {[%clk 0:01:16.9]} 31... Rb6 {[%clk 0:01:48.3]}
32. Be4 {[%clk 0:01:16.2]} 32... Qb7 {[%clk 0:01:45.1]} 33. c4 {[%clk
0:01:14.4]} 33... Rb3 {[%clk 0:01:41.5]} 34. Be3 {[%clk 0:01:00.7]} 34... Nxe3+
{[%clk 0:01:39.2]} 35. Rxe3 {[%clk 0:01:01.1]} 35... Rxe3 {[%clk 0:01:36.5]} 36.
Bxb7 {[%clk 0:00:42.9]} 36... Rxf3 {[%clk 0:01:35.1]} 37. Kxf3 {[%clk
0:00:27.7]} 37... Rxd4 {[%clk 0:01:34.7]} 38. c5 {[%clk 0:00:28.3]} 38... Rc4
{[%clk 0:01:31.4]} 39. c6 {[%clk 0:00:28.1]} 39... Kf8 {[%clk 0:01:29.1]} 40.
Ke3 {[%clk 0:00:16.1]} 40... Ke7 {[%clk 0:01:27.2]} 41. Kd3 {[%clk 0:00:16.5]}
41... Rc5 {[%clk 0:01:26]} 42. Ra3 {[%clk 0:00:13.5]} 42... Bxb2 {[%clk
0:01:23.6]} 43. Rb3 {[%clk 0:00:14.2]} 43... Be5 {[%clk 0:01:21.9]} 44. Rb5
{[%clk 0:00:03.3]} 44... Rd5+ {[%clk 0:01:22]} 0-1